[Event "Titled Tuesday Blitz May 03 Early 2022"]
[White "Moiseenko, Alexander"]
[Black "Preotu, Razvan"]
[WhiteFideId "14102560"]
[BlackFideId "2613280"]
[WhiteElo "2577"]
[BlackElo "2407"]
[Result "1-0"]
[Round "06"]
[TimeControl "180+1"]
[Date "2022.05.03"]
[WhiteClock "0:01:00"]
[BlackClock "0:00:33"]

1. d4 {[%clk 0:02:57]}  Nf6 {[%clk 0:02:59]} 2. Bg5 {[%clk 0:02:56]}  d5 {[%clk 0:02:58]} 3. e3 {[%clk 0:02:54]}  Ne4 {[%clk 0:02:48]} 4. Bf4 {[%clk 0:02:53]}  g5 {[%clk 0:02:45]} 5. Be5 {[%clk 0:02:51]}  Rg8 {[%clk 0:02:36]} 6. Bd3 {[%clk 0:02:37]}  Nc6 {[%clk 0:02:35]} 7. Bxe4 {[%clk 0:02:23]}  dxe4 {[%clk 0:02:35]} 8. Bg3 {[%clk 0:02:23]}  Bf5 {[%clk 0:02:21]} 9. Nc3 {[%clk 0:02:20]}  e6 {[%clk 0:02:21]} 10. h4 {[%clk 0:02:09]}  h6 {[%clk 0:02:19]} 11. hxg5 {[%clk 0:02:00]}  hxg5 {[%clk 0:02:20]} 12. Qd2 {[%clk 0:01:59]}  Na5 {[%clk 0:01:43]} 13. Nb5 {[%clk 0:01:55]}  Nc4 {[%clk 0:00:50]} 14. Qc3 {[%clk 0:01:53]}  Nb6 {[%clk 0:00:37]} 15. Nxc7+ {[%clk 0:01:51]}  Kd7 {[%clk 0:00:38]} 16. Nxa8 {[%clk 0:01:49]}  Nd5 {[%clk 0:00:38]} 17. Qb3 {[%clk 0:01:42]}  Qxa8 {[%clk 0:00:37]} 18. a3 {[%clk 0:01:36]}  Qc8 {[%clk 0:00:34]} 19. c4 {[%clk 0:01:33]}  Nb6 {[%clk 0:00:34]} 20. Rc1 {[%clk 0:01:26]}  Qc6 {[%clk 0:00:34]} 21. Ne2 {[%clk 0:01:24]}  Qa4 {[%clk 0:00:34]} 22. Qxa4+ {[%clk 0:01:14]}  Nxa4 {[%clk 0:00:34]} 23. Rc2 {[%clk 0:01:12]}  Be7 {[%clk 0:00:33]} 24. c5 {[%clk 0:01:05]}  Rc8 {[%clk 0:00:33]} 25. Kd1 {[%clk 0:01:00]} 1-0


[Site "https://www.chess.com"]

[Event "Titled Tuesday Blitz May 03 Early 2022"]
[White "Murtazin, Bulat"]
[Black "Samarth, J Rao"]
[WhiteFideId "24151351"]
[BlackFideId "46652370"]
[WhiteElo "2329"]
[BlackElo "1514"]
[Result "1-0"]
[Round "06"]
[TimeControl "180+1"]
[Date "2022.05.03"]
[WhiteClock "0:01:18"]
[BlackClock "0:01:46"]

1. d4 {[%clk 0:03:00]}  Nf6 {[%clk 0:02:53]} 2. c4 {[%clk 0:03:01]}  g6 {[%clk 0:02:53]} 3. f3 {[%clk 0:03:00]}  d5 {[%clk 0:02:54]} 4. cxd5 {[%clk 0:03:00]}  Nxd5 {[%clk 0:02:52]} 5. e4 {[%clk 0:03:00]}  Nb6 {[%clk 0:02:51]} 6. Nc3 {[%clk 0:03:00]}  Bg7 {[%clk 0:02:51]} 7. Be3 {[%clk 0:03:01]}  O-O {[%clk 0:02:49]} 8. Qd2 {[%clk 0:03:01]}  c6 {[%clk 0:02:47]} 9. Rd1 {[%clk 0:02:58]}  e5 {[%clk 0:02:47]} 10. d5 {[%clk 0:02:36]}  cxd5 {[%clk 0:02:46]} 11. Bxb6 {[%clk 0:02:36]}  Qxb6 {[%clk 0:02:41]} 12. Nxd5 {[%clk 0:02:36]}  Qd6 {[%clk 0:02:28]} 13. Qb4 {[%clk 0:02:07]}  Qxb4+ {[%clk 0:02:00]} 14. Nxb4 {[%clk 0:02:08]}  Be6 {[%clk 0:01:59]} 15. Ne2 {[%clk 0:02:01]}  Nc6 {[%clk 0:01:58]} 16. Nxc6 {[%clk 0:02:00]}  bxc6 {[%clk 0:01:59]} 17. Nc3 {[%clk 0:01:55]}  Rfd8 {[%clk 0:01:55]} 18. Ba6 {[%clk 0:01:47]}  Rd4 {[%clk 0:01:49]} 19. Ke2 {[%clk 0:01:31]}  Rb8 {[%clk 0:01:45]} 20. b3 {[%clk 0:01:18]}  Rxe4+ {[%clk 0:01:46]} 1-0


[Site "https://www.chess.com"]

[Event "Titled Tuesday Blitz May 03 Early 2022"]
[White "Nagy, Gabor"]
[Black "Kanyamarala, Tarun"]
[WhiteFideId "737119"]
[BlackFideId "45004714"]
[WhiteElo "2534"]
[BlackElo "2177"]
[Result "1-0"]
[Round "06"]
[TimeControl "180+1"]
[Date "2022.05.03"]
[WhiteClock "0:01:14"]
[BlackClock "0:00:06"]

1. d4 {[%clk 0:03:00]}  f5 {[%clk 0:02:59]} 2. Nh3 {[%clk 0:02:57]}  Nf6 {[%clk 0:02:56]} 3. g3 {[%clk 0:02:58]}  g6 {[%clk 0:02:51]} 4. Bg2 {[%clk 0:02:58]}  Bg7 {[%clk 0:02:50]} 5. Nf4 {[%clk 0:02:59]}  Nc6 {[%clk 0:02:50]} 6. Nc3 {[%clk 0:02:57]}  e5 {[%clk 0:02:48]} 7. dxe5 {[%clk 0:02:55]}  Nxe5 {[%clk 0:02:48]} 8. h4 {[%clk 0:02:56]}  c6 {[%clk 0:02:46]} 9. h5 {[%clk 0:02:55]}  g5 {[%clk 0:02:46]} 10. h6 {[%clk 0:02:54]}  Bf8 {[%clk 0:02:45]} 11. Nd3 {[%clk 0:02:52]}  Nf7 {[%clk 0:02:44]} 12. f4 {[%clk 0:02:36]}  g4 {[%clk 0:02:41]} 13. Ne5 {[%clk 0:02:32]}  d5 {[%clk 0:02:22]} 14. Be3 {[%clk 0:02:26]}  Bd6 {[%clk 0:02:06]} 15. Nxf7 {[%clk 0:02:22]}  Kxf7 {[%clk 0:02:06]} 16. Qd3 {[%clk 0:02:21]}  Re8 {[%clk 0:02:01]} 17. O-O-O {[%clk 0:02:20]}  Qa5 {[%clk 0:01:46]} 18. Kb1 {[%clk 0:02:18]}  Be6 {[%clk 0:01:42]} 19. Bd4 {[%clk 0:02:17]}  Rad8 {[%clk 0:01:33]} 20. Bxf6 {[%clk 0:02:16]}  Kxf6 {[%clk 0:01:33]} 21. Qd4+ {[%clk 0:02:17]}  Ke7 {[%clk 0:01:28]} 22. Qg7+ {[%clk 0:02:17]}  Bf7 {[%clk 0:01:28]} 23. Qxh7 {[%clk 0:02:09]}  d4 {[%clk 0:01:25]} 24. Rxd4 {[%clk 0:02:07]}  Rh8 {[%clk 0:01:15]} 25. Qg7 {[%clk 0:02:01]}  Rdg8 {[%clk 0:01:14]} 26. Ra4 {[%clk 0:01:42]}  Qxa4 {[%clk 0:00:43]} 27. Qxh8 {[%clk 0:01:28]}  Bxa2+ {[%clk 0:00:20]} 28. Ka1 {[%clk 0:01:22]}  Qa5 {[%clk 0:00:12]} 29. Qd4 {[%clk 0:01:17]}  Bd5+ {[%clk 0:00:11]} 30. Kb1 {[%clk 0:01:17]}  Bxg2 {[%clk 0:00:11]} 31. h7 {[%clk 0:01:17]}  Rd8 {[%clk 0:00:08]} 32. h8=Q {[%clk 0:01:15]}  Rxh8 {[%clk 0:00:08]} 33. Rxh8 {[%clk 0:01:16]}  Bd5 {[%clk 0:00:06]} 34. Qg7+ {[%clk 0:01:15]}  Bf7 {[%clk 0:00:06]} 35. Qf8+ {[%clk 0:01:14]}  Ke6 {[%clk 0:00:06]} 36. Rh6+ {[%clk 0:01:14]} 1-0


[Site "https://www.chess.com"]

[Event "Titled Tuesday Blitz May 03 Early 2022"]
[White "Nguyen Hong Nhung"]
[Black "Khokhlova, Daria"]
[WhiteFideId "12412201"]
[BlackFideId "24182729"]
[WhiteElo "1758"]
[BlackElo "2034"]
[Result "1-0"]
[Round "06"]
[TimeControl "180+1"]
[Date "2022.05.03"]
[WhiteClock "0:00:19"]
[BlackClock "0:00:08"]

1. e4 {[%clk 0:03:00]}  c5 {[%clk 0:02:59]} 2. Nc3 {[%clk 0:03:00]}  Nc6 {[%clk 0:02:59]} 3. Bb5 {[%clk 0:02:59]}  Nd4 {[%clk 0:02:59]} 4. Bc4 {[%clk 0:03:00]}  e6 {[%clk 0:02:42]} 5. Nge2 {[%clk 0:02:59]}  Nf6 {[%clk 0:02:37]} 6. O-O {[%clk 0:02:57]}  d5 {[%clk 0:02:33]} 7. exd5 {[%clk 0:02:56]}  exd5 {[%clk 0:02:34]} 8. Nxd5 {[%clk 0:02:54]}  Nxd5 {[%clk 0:02:31]} 9. Nxd4 {[%clk 0:02:54]}  cxd4 {[%clk 0:02:27]} 10. Qh5 {[%clk 0:02:54]}  Be6 {[%clk 0:02:26]} 11. Re1 {[%clk 0:02:53]}  Nf4 {[%clk 0:00:48]} 12. Bb5+ {[%clk 0:02:40]}  Ke7 {[%clk 0:00:38]} 13. Qg5+ {[%clk 0:02:30]}  f6 {[%clk 0:00:37]} 14. Qxf4 {[%clk 0:02:30]}  Kf7 {[%clk 0:00:36]} 15. d3 {[%clk 0:02:18]}  a6 {[%clk 0:00:32]} 16. Ba4 {[%clk 0:02:15]}  b5 {[%clk 0:00:31]} 17. Bb3 {[%clk 0:02:14]}  Bxb3 {[%clk 0:00:32]} 18. axb3 {[%clk 0:02:15]}  Bc5 {[%clk 0:00:32]} 19. Qf5 {[%clk 0:02:09]}  Qd6 {[%clk 0:00:30]} 20. Bf4 {[%clk 0:02:05]}  Qc6 {[%clk 0:00:28]} 21. Qh5+ {[%clk 0:01:44]}  g6 {[%clk 0:00:28]} 22. Qh6 {[%clk 0:01:32]}  Bf8 {[%clk 0:00:28]} 23. Qh3 {[%clk 0:01:30]}  g5 {[%clk 0:00:26]} 24. Qh5+ {[%clk 0:01:10]}  Kg7 {[%clk 0:00:26]} 25. Bg3 {[%clk 0:00:59]}  Bb4 {[%clk 0:00:19]} 26. Re4 {[%clk 0:00:54]}  Rhe8 {[%clk 0:00:13]} 27. Rxd4 {[%clk 0:00:50]}  Bc5 {[%clk 0:00:12]} 28. Re4 {[%clk 0:00:37]}  Rxe4 {[%clk 0:00:11]} 29. dxe4 {[%clk 0:00:38]}  Qxe4 {[%clk 0:00:12]} 30. Rd1 {[%clk 0:00:37]}  Re8 {[%clk 0:00:09]} 31. h4 {[%clk 0:00:35]}  h6 {[%clk 0:00:08]} 32. hxg5 {[%clk 0:00:34]}  hxg5 {[%clk 0:00:09]} 33. Rd7+ {[%clk 0:00:34]}  Re7 {[%clk 0:00:09]} 34. Rd8 {[%clk 0:00:27]}  Qe1+ {[%clk 0:00:07]} 35. Kh2 {[%clk 0:00:27]}  f5 {[%clk 0:00:06]} 36. Qh8+ {[%clk 0:00:25]}  Kg6 {[%clk 0:00:06]} 37. Rg8+ {[%clk 0:00:25]}  Kf7 {[%clk 0:00:07]} 38. Rf8+ {[%clk 0:00:20]}  Ke6 {[%clk 0:00:07]} 39. Qf6+ {[%clk 0:00:20]}  Kd7 {[%clk 0:00:07]} 40. Qxf5+ {[%clk 0:00:19]}  Kc6 {[%clk 0:00:07]} 41. Rc8+ {[%clk 0:00:19]}  Kb7 {[%clk 0:00:08]} 42. Rxc5 {[%clk 0:00:19]} 1-0


[Site "https://www.chess.com"]

[Event "Titled Tuesday Blitz May 03 Early 2022"]
[White "Nozdrachev, Leonid"]
[Black "Melikhov, Evgeny V."]
[WhiteFideId "24113433"]
[BlackFideId "4122046"]
[WhiteElo "2242"]
[BlackElo "1931"]
[Result "1-0"]
[Round "06"]
[TimeControl "180+1"]
[Date "2022.05.03"]
[WhiteClock "0:02:14"]
[BlackClock "0:01:42"]

1. d4 {[%clk 0:03:00]}  Nf6 {[%clk 0:02:59]} 2. Nc3 {[%clk 0:02:58]}  d5 {[%clk 0:02:58]} 3. Bf4 {[%clk 0:02:57]}  c5 {[%clk 0:02:58]} 4. e3 {[%clk 0:02:54]}  cxd4 {[%clk 0:02:58]} 5. Nb5 {[%clk 0:02:54]}  Qa5+ {[%clk 0:02:57]} 6. b4 {[%clk 0:02:50]}  Qxb4+ {[%clk 0:02:55]} 7. c3 {[%clk 0:02:49]}  dxc3 {[%clk 0:02:52]} 8. Nc7+ {[%clk 0:02:48]}  Kd8 {[%clk 0:02:51]} 9. Nxa8 {[%clk 0:02:49]}  c2+ {[%clk 0:02:29]} 10. Qd2 {[%clk 0:02:48]}  Qb1+ {[%clk 0:02:25]} 11. Qc1 {[%clk 0:02:47]}  Bf5 {[%clk 0:02:16]} 12. f3 {[%clk 0:02:35]}  e5 {[%clk 0:02:11]} 13. e4 {[%clk 0:02:24]}  exf4 {[%clk 0:01:57]} 14. Rxb1 {[%clk 0:02:22]}  cxb1=Q {[%clk 0:01:52]} 15. Qxb1 {[%clk 0:02:23]}  Kc8 {[%clk 0:01:46]} 16. exf5 {[%clk 0:02:21]}  Bc5 {[%clk 0:01:44]} 17. Bb5 {[%clk 0:02:17]}  a6 {[%clk 0:01:42]} 18. Qc1 {[%clk 0:02:14]} 1-0


[Site "https://www.chess.com"]

[Event "Titled Tuesday Blitz May 03 Early 2022"]
[White "Oganian, Miran"]
[Black "Hansen, Eric"]
[WhiteFideId "4122488"]
[BlackFideId "2606771"]
[WhiteElo "2357"]
[BlackElo "2568"]
[Result "1-0"]
[Round "06"]
[TimeControl "180+1"]
[Date "2022.05.03"]
[WhiteClock "0:00:12"]
[BlackClock "0:00:02"]

1. e4 {[%clk 0:02:59]}  c5 {[%clk 0:02:59]} 2. Nf3 {[%clk 0:02:59]}  e6 {[%clk 0:02:58]} 3. c3 {[%clk 0:02:59]}  Nf6 {[%clk 0:02:57]} 4. e5 {[%clk 0:03:00]}  Nd5 {[%clk 0:02:58]} 5. d4 {[%clk 0:03:01]}  cxd4 {[%clk 0:02:59]} 6. cxd4 {[%clk 0:03:01]}  b6 {[%clk 0:02:58]} 7. Bc4 {[%clk 0:03:00]}  Bb7 {[%clk 0:02:58]} 8. O-O {[%clk 0:02:58]}  Be7 {[%clk 0:02:57]} 9. Bxd5 {[%clk 0:02:58]}  Bxd5 {[%clk 0:02:56]} 10. Nc3 {[%clk 0:02:59]}  Bb7 {[%clk 0:02:56]} 11. d5 {[%clk 0:03:00]}  exd5 {[%clk 0:02:42]} 12. Nxd5 {[%clk 0:03:00]}  O-O {[%clk 0:02:43]} 13. Bf4 {[%clk 0:02:42]}  Nc6 {[%clk 0:02:41]} 14. Qd2 {[%clk 0:02:36]}  Re8 {[%clk 0:02:41]} 15. Rad1 {[%clk 0:02:28]}  Rc8 {[%clk 0:02:24]} 16. Rfe1 {[%clk 0:02:28]}  a5 {[%clk 0:02:22]} 17. a3 {[%clk 0:02:27]}  a4 {[%clk 0:02:21]} 18. Nxe7+ {[%clk 0:02:15]}  Qxe7 {[%clk 0:02:20]} 19. Qxd7 {[%clk 0:02:14]}  Na5 {[%clk 0:02:16]} 20. Qg4 {[%clk 0:02:03]}  Qe6 {[%clk 0:02:02]} 21. Qxe6 {[%clk 0:02:01]}  fxe6 {[%clk 0:02:00]} 22. Nd4 {[%clk 0:01:53]}  Bd5 {[%clk 0:01:59]} 23. Nb5 {[%clk 0:01:21]}  Rc2 {[%clk 0:01:55]} 24. Nd6 {[%clk 0:01:20]}  Rf8 {[%clk 0:01:55]} 25. Rd2 {[%clk 0:01:21]}  Rc6 {[%clk 0:01:47]} 26. Be3 {[%clk 0:01:13]}  Nb3 {[%clk 0:01:48]} 27. Rde2 {[%clk 0:01:07]}  h6 {[%clk 0:01:43]} 28. f4 {[%clk 0:01:01]}  h5 {[%clk 0:01:38]} 29. g3 {[%clk 0:01:01]}  Kh7 {[%clk 0:01:38]} 30. Rf2 {[%clk 0:00:57]}  Kg6 {[%clk 0:01:38]} 31. Ree2 {[%clk 0:00:53]}  Na1 {[%clk 0:01:34]} 32. Rf1 {[%clk 0:00:40]}  Nb3 {[%clk 0:01:33]} 33. Ref2 {[%clk 0:00:39]}  Kh7 {[%clk 0:01:20]} 34. h3 {[%clk 0:00:39]}  Nc5 {[%clk 0:01:08]} 35. Bxc5 {[%clk 0:00:39]}  Rxc5 {[%clk 0:01:08]} 36. g4 {[%clk 0:00:39]}  h4 {[%clk 0:01:07]} 37. f5 {[%clk 0:00:35]}  Bc6 {[%clk 0:01:01]} 38. Re1 {[%clk 0:00:25]}  Bd5 {[%clk 0:00:30]} 39. Ne4 {[%clk 0:00:24]}  Rc4 {[%clk 0:00:23]} 40. Ng5+ {[%clk 0:00:23]}  Kg8 {[%clk 0:00:23]} 41. f6 {[%clk 0:00:21]}  Rd4 {[%clk 0:00:17]} 42. f7+ {[%clk 0:00:21]}  Kh8 {[%clk 0:00:16]} 43. Rc1 {[%clk 0:00:21]}  Bc4 {[%clk 0:00:12]} 44. Kh2 {[%clk 0:00:20]}  b5 {[%clk 0:00:12]} 45. Rcc2 {[%clk 0:00:19]}  g6 {[%clk 0:00:06]} 46. Rxc4 {[%clk 0:00:17]}  Rxc4 {[%clk 0:00:02]} 47. Nxe6 {[%clk 0:00:18]}  Rxf7 {[%clk 0:00:02]} 48. Rxf7 {[%clk 0:00:17]}  Rc2+ {[%clk 0:00:03]} 49. Kg1 {[%clk 0:00:17]}  Rxb2 {[%clk 0:00:04]} 50. Nf4 {[%clk 0:00:17]}  b4 {[%clk 0:00:04]} 51. e6 {[%clk 0:00:16]}  Kg8 {[%clk 0:00:02]} 52. Nd5 {[%clk 0:00:09]}  Rb1+ {[%clk 0:00:01]} 53. Kg2 {[%clk 0:00:09]}  Rb2+ {[%clk 0:00:01]} 54. Kf3 {[%clk 0:00:10]}  Rb3+ {[%clk 0:00:01]} 55. Kf4 {[%clk 0:00:10]}  bxa3 {[%clk 0:00:02]} 56. Nf6+ {[%clk 0:00:11]}  Kh8 {[%clk 0:00:02]} 57. Rh7# {[%clk 0:00:12]} 1-0


[Site "https://www.chess.com"]

[Event "Titled Tuesday Blitz May 03 Early 2022"]
[White "Ovezdurdyyeva, Jemal"]
[Black "Omariev, Maksim"]
[WhiteFideId "14001888"]
[BlackFideId "4193423"]
[WhiteElo "1946"]
[BlackElo "2507"]
[Result "0-1"]
[Round "06"]
[TimeControl "180+1"]
[Date "2022.05.03"]
[WhiteClock "0:00:04"]
[BlackClock "0:00:15"]

1. e4 {[%clk 0:02:59]}  h5 {[%clk 0:03:00]} 2. d4 {[%clk 0:02:58]}  h4 {[%clk 0:03:01]} 3. h3 {[%clk 0:02:57]}  c6 {[%clk 0:03:01]} 4. Nf3 {[%clk 0:02:57]}  d5 {[%clk 0:03:02]} 5. e5 {[%clk 0:02:56]}  Bf5 {[%clk 0:03:01]} 6. Bg5 {[%clk 0:02:53]}  Qb6 {[%clk 0:03:01]} 7. b3 {[%clk 0:02:49]}  e6 {[%clk 0:02:36]} 8. Bxh4 {[%clk 0:02:44]}  c5 {[%clk 0:02:34]} 9. c3 {[%clk 0:02:23]}  Nc6 {[%clk 0:02:33]} 10. Bd3 {[%clk 0:02:15]}  Nh6 {[%clk 0:02:31]} 11. Bg5 {[%clk 0:02:11]}  cxd4 {[%clk 0:02:26]} 12. Bxh6 {[%clk 0:02:08]}  Bxd3 {[%clk 0:02:12]} 13. Qxd3 {[%clk 0:02:00]}  Rxh6 {[%clk 0:02:13]} 14. cxd4 {[%clk 0:01:45]}  Nb4 {[%clk 0:01:36]} 15. Qe2 {[%clk 0:00:55]}  Rc8 {[%clk 0:01:07]} 16. Na3 {[%clk 0:00:43]}  Qa5 {[%clk 0:00:55]} 17. O-O {[%clk 0:00:43]}  Qxa3 {[%clk 0:00:54]} 18. Qb5+ {[%clk 0:00:44]}  Rc6 {[%clk 0:00:40]} 19. Rac1 {[%clk 0:00:27]}  Qa6 {[%clk 0:00:38]} 20. Qxa6 {[%clk 0:00:26]}  Nxa6 {[%clk 0:00:36]} 21. Rxc6 {[%clk 0:00:18]}  bxc6 {[%clk 0:00:37]} 22. Rc1 {[%clk 0:00:18]}  c5 {[%clk 0:00:35]} 23. a4 {[%clk 0:00:16]}  f6 {[%clk 0:00:29]} 24. exf6 {[%clk 0:00:13]}  gxf6 {[%clk 0:00:29]} 25. dxc5 {[%clk 0:00:12]}  Bxc5 {[%clk 0:00:27]} 26. Re1 {[%clk 0:00:10]}  Kd7 {[%clk 0:00:26]} 27. g4 {[%clk 0:00:08]}  Rxh3 {[%clk 0:00:25]} 28. Kg2 {[%clk 0:00:08]}  Rh8 {[%clk 0:00:25]} 29. Kg3 {[%clk 0:00:08]}  Nb4 {[%clk 0:00:20]} 30. Rd1 {[%clk 0:00:06]}  Bd6+ {[%clk 0:00:18]} 31. Kg2 {[%clk 0:00:06]}  Rg8 {[%clk 0:00:18]} 32. Kh3 {[%clk 0:00:06]}  Nc6 {[%clk 0:00:17]} 33. Nh4 {[%clk 0:00:05]}  Ne5 {[%clk 0:00:16]} 34. Rd4 {[%clk 0:00:04]}  Rh8 {[%clk 0:00:15]} 0-1


[Site "https://www.chess.com"]

[Event "Titled Tuesday Blitz May 03 Early 2022"]
[White "Perez Molina, Robinson"]
[Black "Johnson, Ben"]
[WhiteFideId "3403882"]
[BlackFideId "2010917"]
[WhiteElo "2252"]
[BlackElo "2195"]
[Result "1-0"]
[Round "06"]
[TimeControl "180+1"]
[Date "2022.05.03"]
[WhiteClock "0:00:07"]
[BlackClock "0:00:16"]

1. e4 {[%clk 0:01:02]}  c5 {[%clk 0:02:51]} 2. Nf3 {[%clk 0:00:59]}  Nc6 {[%clk 0:02:51]} 3. Bb5 {[%clk 0:00:57]}  g6 {[%clk 0:02:51]} 4. Bxc6 {[%clk 0:00:53]}  bxc6 {[%clk 0:02:52]} 5. O-O {[%clk 0:00:46]}  Bg7 {[%clk 0:02:53]} 6. d3 {[%clk 0:00:45]}  e5 {[%clk 0:02:51]} 7. Nc3 {[%clk 0:00:41]}  Qc7 {[%clk 0:02:46]} 8. Be3 {[%clk 0:00:39]}  d6 {[%clk 0:02:44]} 9. h3 {[%clk 0:00:38]}  Ne7 {[%clk 0:02:42]} 10. Nd2 {[%clk 0:00:38]}  O-O {[%clk 0:02:41]} 11. f4 {[%clk 0:00:37]}  f5 {[%clk 0:02:36]} 12. fxe5 {[%clk 0:00:35]}  Bxe5 {[%clk 0:02:34]} 13. Bh6 {[%clk 0:00:34]}  Rf7 {[%clk 0:02:32]} 14. Nf3 {[%clk 0:00:34]}  Bg7 {[%clk 0:02:28]} 15. Bxg7 {[%clk 0:00:31]}  Kxg7 {[%clk 0:02:24]} 16. Nh4 {[%clk 0:00:29]}  d5 {[%clk 0:02:16]} 17. exf5 {[%clk 0:00:25]}  Nxf5 {[%clk 0:02:12]} 18. Nxf5+ {[%clk 0:00:24]}  Bxf5 {[%clk 0:02:10]} 19. Qd2 {[%clk 0:00:23]}  Rb8 {[%clk 0:02:03]} 20. b3 {[%clk 0:00:23]}  Re8 {[%clk 0:01:57]} 21. Rae1 {[%clk 0:00:22]}  Rxe1 {[%clk 0:01:47]} 22. Rxe1 {[%clk 0:00:22]}  Qa5 {[%clk 0:01:44]} 23. a4 {[%clk 0:00:19]}  Qb4 {[%clk 0:01:36]} 24. Nb1 {[%clk 0:00:18]}  Qd4+ {[%clk 0:01:32]} 25. Qe3 {[%clk 0:00:16]}  Qxe3+ {[%clk 0:01:21]} 26. Rxe3 {[%clk 0:00:17]}  c4 {[%clk 0:01:22]} 27. Na3 {[%clk 0:00:12]}  cxb3 {[%clk 0:01:20]} 28. cxb3 {[%clk 0:00:12]}  Rb7 {[%clk 0:01:21]} 29. d4 {[%clk 0:00:11]}  Rb4 {[%clk 0:01:17]} 30. Rc3 {[%clk 0:00:12]}  Bd7 {[%clk 0:01:06]} 31. Rd3 {[%clk 0:00:10]}  Kf6 {[%clk 0:01:07]} 32. Kf2 {[%clk 0:00:10]}  a5 {[%clk 0:01:04]} 33. Ke3 {[%clk 0:00:10]}  Ke6 {[%clk 0:01:03]} 34. Nc2 {[%clk 0:00:09]}  Rb8 {[%clk 0:01:02]} 35. Ne1 {[%clk 0:00:09]}  Kd6 {[%clk 0:01:01]} 36. Nf3 {[%clk 0:00:08]}  c5 {[%clk 0:00:53]} 37. dxc5+ {[%clk 0:00:06]}  Kxc5 {[%clk 0:00:54]} 38. Rc3+ {[%clk 0:00:06]}  Kb4 {[%clk 0:00:52]} 39. Rd3 {[%clk 0:00:07]}  Bf5 {[%clk 0:00:46]} 40. Rxd5 {[%clk 0:00:05]}  Kxb3 {[%clk 0:00:47]} 41. Rxa5 {[%clk 0:00:05]}  Re8+ {[%clk 0:00:41]} 42. Kf4 {[%clk 0:00:04]}  Re4+ {[%clk 0:00:33]} 43. Kg5 {[%clk 0:00:04]}  Rxa4 {[%clk 0:00:30]} 44. Rxa4 {[%clk 0:00:03]}  Kxa4 {[%clk 0:00:31]} 45. Ne5 {[%clk 0:00:03]}  Kb4 {[%clk 0:00:30]} 46. g4 {[%clk 0:00:04]}  Be4 {[%clk 0:00:28]} 47. Kh6 {[%clk 0:00:04]}  Kc5 {[%clk 0:00:24]} 48. Kxh7 {[%clk 0:00:04]}  Kd5 {[%clk 0:00:25]} 49. Nxg6 {[%clk 0:00:04]}  Ke6 {[%clk 0:00:21]} 50. Kh6 {[%clk 0:00:05]}  Kf6 {[%clk 0:00:22]} 51. Nf4 {[%clk 0:00:05]}  Bc2 {[%clk 0:00:21]} 52. Nh5+ {[%clk 0:00:05]}  Kf7 {[%clk 0:00:21]} 53. h4 {[%clk 0:00:05]}  Bb1 {[%clk 0:00:21]} 54. g5 {[%clk 0:00:06]}  Bc2 {[%clk 0:00:22]} 55. Nf4 {[%clk 0:00:06]}  Kg8 {[%clk 0:00:22]} 56. g6 {[%clk 0:00:06]}  Bb1 {[%clk 0:00:22]} 57. Kg5 {[%clk 0:00:07]}  Bc2 {[%clk 0:00:22]} 58. h5 {[%clk 0:00:07]}  Kh8 {[%clk 0:00:21]} 59. h6 {[%clk 0:00:08]}  Bb1 {[%clk 0:00:20]} 60. Nd5 {[%clk 0:00:07]}  Be4 {[%clk 0:00:17]} 61. g7+ {[%clk 0:00:06]}  Kg8 {[%clk 0:00:15]} 62. Nf6+ {[%clk 0:00:07]}  Kf7 {[%clk 0:00:16]} 63. g8=Q+ {[%clk 0:00:07]} 1-0


[Site "https://www.chess.com"]

[Event "Titled Tuesday Blitz May 03 Early 2022"]
[White "Peterson, Eric"]
[Black "Hart, Braeden"]
[WhiteFideId "14908395"]
[BlackFideId "30962587"]
[WhiteElo "2195"]
[BlackElo "2507"]
[Result "0-1"]
[Round "06"]
[TimeControl "180+1"]
[Date "2022.05.03"]
[WhiteClock "0:00:02"]
[BlackClock "0:00:11"]

1. e4 {[%clk 0:03:00]}  e5 {[%clk 0:02:59]} 2. Nf3 {[%clk 0:03:00]}  d5 {[%clk 0:03:00]} 3. exd5 {[%clk 0:02:59]}  e4 {[%clk 0:03:01]} 4. Qe2 {[%clk 0:02:59]}  Nf6 {[%clk 0:03:01]} 5. d3 {[%clk 0:02:57]}  Qxd5 {[%clk 0:03:02]} 6. Nbd2 {[%clk 0:02:54]}  Be7 {[%clk 0:03:00]} 7. dxe4 {[%clk 0:02:53]}  Qd8 {[%clk 0:02:59]} 8. Qd3 {[%clk 0:02:42]}  Nbd7 {[%clk 0:02:50]} 9. Be2 {[%clk 0:02:37]}  O-O {[%clk 0:02:47]} 10. O-O {[%clk 0:02:36]}  Re8 {[%clk 0:02:46]} 11. Rd1 {[%clk 0:01:48]}  Bc5 {[%clk 0:02:27]} 12. Nb3 {[%clk 0:01:45]}  Nxe4 {[%clk 0:02:11]} 13. Nxc5 {[%clk 0:01:40]}  Nexc5 {[%clk 0:02:12]} 14. Qd2 {[%clk 0:01:30]}  Qe7 {[%clk 0:02:09]} 15. Bd3 {[%clk 0:01:27]}  Nxd3 {[%clk 0:02:08]} 16. Qxd3 {[%clk 0:01:26]}  Nc5 {[%clk 0:02:05]} 17. Qf1 {[%clk 0:01:26]}  Bg4 {[%clk 0:02:04]} 18. Re1 {[%clk 0:01:22]}  Qxe1 {[%clk 0:01:56]} 19. Qxe1 {[%clk 0:01:17]}  Rxe1+ {[%clk 0:01:41]} 20. Nxe1 {[%clk 0:01:18]}  Re8 {[%clk 0:01:41]} 21. Bd2 {[%clk 0:01:14]}  Bf5 {[%clk 0:01:40]} 22. Kf1 {[%clk 0:01:08]}  h5 {[%clk 0:01:31]} 23. Be3 {[%clk 0:01:08]}  Na4 {[%clk 0:01:28]} 24. b3 {[%clk 0:00:55]}  Nb6 {[%clk 0:01:27]} 25. Rd1 {[%clk 0:00:40]}  h4 {[%clk 0:01:27]} 26. h3 {[%clk 0:00:39]}  Be4 {[%clk 0:01:17]} 27. c4 {[%clk 0:00:38]}  Bc6 {[%clk 0:01:10]} 28. Nd3 {[%clk 0:00:28]}  Rd8 {[%clk 0:01:00]} 29. Bg5 {[%clk 0:00:26]}  f6 {[%clk 0:01:00]} 30. Bxh4 {[%clk 0:00:25]}  Be4 {[%clk 0:01:01]} 31. Nb2 {[%clk 0:00:23]}  Re8 {[%clk 0:00:56]} 32. f3 {[%clk 0:00:21]}  Bc2 {[%clk 0:00:54]} 33. Rd2 {[%clk 0:00:18]}  Bb1 {[%clk 0:00:53]} 34. a3 {[%clk 0:00:17]}  Ba2 {[%clk 0:00:52]} 35. b4 {[%clk 0:00:17]}  Nxc4 {[%clk 0:00:51]} 36. Nxc4 {[%clk 0:00:17]}  Bxc4+ {[%clk 0:00:52]} 37. Kf2 {[%clk 0:00:17]}  Bb5 {[%clk 0:00:42]} 38. Bg3 {[%clk 0:00:17]}  Re7 {[%clk 0:00:38]} 39. Bf4 {[%clk 0:00:17]}  b6 {[%clk 0:00:37]} 40. Be3 {[%clk 0:00:16]}  Kf7 {[%clk 0:00:35]} 41. Rd8 {[%clk 0:00:15]}  a5 {[%clk 0:00:27]} 42. bxa5 {[%clk 0:00:14]}  bxa5 {[%clk 0:00:28]} 43. Ra8 {[%clk 0:00:13]}  a4 {[%clk 0:00:27]} 44. Rc8 {[%clk 0:00:14]}  Rd7 {[%clk 0:00:22]} 45. g4 {[%clk 0:00:12]}  c6 {[%clk 0:00:21]} 46. h4 {[%clk 0:00:12]}  Rd3 {[%clk 0:00:22]} 47. Bc5 {[%clk 0:00:10]}  Rc3 {[%clk 0:00:21]} 48. Rf8+ {[%clk 0:00:08]}  Kg6 {[%clk 0:00:19]} 49. Bb4 {[%clk 0:00:09]}  Rc2+ {[%clk 0:00:17]} 50. Kg3 {[%clk 0:00:08]}  c5 {[%clk 0:00:16]} 51. h5+ {[%clk 0:00:08]}  Kh7 {[%clk 0:00:16]} 52. Ba5 {[%clk 0:00:07]}  Ra2 {[%clk 0:00:13]} 53. Rf7 {[%clk 0:00:07]}  Rxa3 {[%clk 0:00:12]} 54. Bb6 {[%clk 0:00:07]}  Bc6 {[%clk 0:00:13]} 55. Bxc5 {[%clk 0:00:06]}  Rxf3+ {[%clk 0:00:13]} 56. Kh4 {[%clk 0:00:07]}  a3 {[%clk 0:00:13]} 57. Bf8 {[%clk 0:00:06]}  Kg8 {[%clk 0:00:14]} 58. Rc7 {[%clk 0:00:03]}  a2 {[%clk 0:00:13]} 59. Ra7 {[%clk 0:00:02]}  Kxf8 {[%clk 0:00:12]} 60. Rxa2 {[%clk 0:00:02]}  Bd7 {[%clk 0:00:11]} 0-1


[Site "https://www.chess.com"]